[Event "Titled Tuesday Blitz August 1 Late 2023"]
[White "Taboas Rodriguez, Daniel"]
[Black "Slavin, Alexey"]
[WhiteFideId "2208466"]
[BlackFideId "24104388"]
[WhiteElo "2570"]
[BlackElo "2357"]
[Result "1/2-1/2"]
[Round "2"]
[TimeControl "180+1"]
[Date "2023.08.01"]
[WhiteClock "0:00:05"]
[BlackClock "0:00:09"]
[Board "97"]

1. d4 {[%clk 0:03:00]}  Nc6 {[%clk 0:02:58]} 2. Nf3 {[%clk 0:02:59]}  d6 {[%clk 0:02:58]} 3. d5 {[%clk 0:02:59]}  Ne5 {[%clk 0:02:58]} 4. Nxe5 {[%clk 0:02:59]}  dxe5 {[%clk 0:02:59]} 5. e4 {[%clk 0:03:00]}  Nf6 {[%clk 0:03:00]} 6. Nc3 {[%clk 0:02:58]}  a6 {[%clk 0:03:00]} 7. Bd3 {[%clk 0:02:52]}  e6 {[%clk 0:02:59]} 8. Bg5 {[%clk 0:02:37]}  Be7 {[%clk 0:02:58]} 9. dxe6 {[%clk 0:02:32]}  Bxe6 {[%clk 0:02:58]} 10. O-O {[%clk 0:02:32]}  O-O {[%clk 0:02:41]} 11. Qe2 {[%clk 0:02:31]}  c6 {[%clk 0:02:37]} 12. Rad1 {[%clk 0:02:30]}  Qc7 {[%clk 0:02:37]} 13. Bc4 {[%clk 0:02:26]}  Bg4 {[%clk 0:02:28]} 14. f3 {[%clk 0:02:24]}  Bc8 {[%clk 0:02:16]} 15. Bb3 {[%clk 0:02:18]}  b5 {[%clk 0:02:13]} 16. Kh1 {[%clk 0:02:16]}  a5 {[%clk 0:02:11]} 17. a4 {[%clk 0:02:16]}  b4 {[%clk 0:02:11]} 18. Nb1 {[%clk 0:02:14]}  Ba6 {[%clk 0:02:11]} 19. Bc4 {[%clk 0:02:14]}  Bb7 {[%clk 0:01:47]} 20. Nd2 {[%clk 0:02:12]}  Rad8 {[%clk 0:01:47]} 21. Nb3 {[%clk 0:02:07]}  h6 {[%clk 0:01:45]} 22. Be3 {[%clk 0:01:41]}  Rxd1 {[%clk 0:01:23]} 23. Rxd1 {[%clk 0:01:40]}  Rd8 {[%clk 0:01:24]} 24. Rxd8+ {[%clk 0:01:35]}  Qxd8 {[%clk 0:01:19]} 25. Qd3 {[%clk 0:01:34]}  Qc7 {[%clk 0:01:18]} 26. Ba6 {[%clk 0:01:21]}  Ba8 {[%clk 0:01:08]} 27. Nd2 {[%clk 0:01:14]}  Nd7 {[%clk 0:01:06]} 28. b3 {[%clk 0:00:52]}  Bc5 {[%clk 0:01:05]} 29. Bc4 {[%clk 0:00:48]}  Bxe3 {[%clk 0:00:59]} 30. Qxe3 {[%clk 0:00:48]}  Qb6 {[%clk 0:00:54]} 31. Qxb6 {[%clk 0:00:47]}  Nxb6 {[%clk 0:00:54]} 32. Kg1 {[%clk 0:00:48]}  Bb7 {[%clk 0:00:52]} 33. Kf2 {[%clk 0:00:48]}  Bc8 {[%clk 0:00:51]} 34. Ke3 {[%clk 0:00:47]}  Kf8 {[%clk 0:00:50]} 35. g3 {[%clk 0:00:40]}  Ke7 {[%clk 0:00:50]} 36. f4 {[%clk 0:00:40]}  f6 {[%clk 0:00:49]} 37. f5 {[%clk 0:00:34]}  Kd6 {[%clk 0:00:46]} 38. g4 {[%clk 0:00:34]}  Kc5 {[%clk 0:00:40]} 39. h4 {[%clk 0:00:33]}  Bd7 {[%clk 0:00:31]} 40. Bd3 {[%clk 0:00:32]}  Be8 {[%clk 0:00:28]} 41. Nf3 {[%clk 0:00:29]}  Bf7 {[%clk 0:00:25]} 42. g5 {[%clk 0:00:29]}  hxg5 {[%clk 0:00:25]} 43. hxg5 {[%clk 0:00:30]}  Kd6 {[%clk 0:00:23]} 44. g6 {[%clk 0:00:28]}  Bg8 {[%clk 0:00:21]} 45. Nh2 {[%clk 0:00:25]}  c5 {[%clk 0:00:17]} 46. Be2 {[%clk 0:00:19]}  c4 {[%clk 0:00:17]} 47. Bd1 {[%clk 0:00:20]}  Nd7 {[%clk 0:00:15]} 48. Nf1 {[%clk 0:00:19]}  Nc5 {[%clk 0:00:15]} 49. Nd2 {[%clk 0:00:17]}  cxb3 {[%clk 0:00:13]} 50. cxb3 {[%clk 0:00:17]}  Kc6 {[%clk 0:00:13]} 51. Bc2 {[%clk 0:00:17]}  Kd6 {[%clk 0:00:14]} 52. Kf3 {[%clk 0:00:16]}  Kc6 {[%clk 0:00:13]} 53. Ke3 {[%clk 0:00:16]}  Nb7 {[%clk 0:00:14]} 54. Nf1 {[%clk 0:00:12]}  Nd6 {[%clk 0:00:13]} 55. Ng3 {[%clk 0:00:11]}  Kd7 {[%clk 0:00:12]} 56. Nh5 {[%clk 0:00:11]}  Ne8 {[%clk 0:00:12]} 57. Kd2 {[%clk 0:00:11]}  Ke7 {[%clk 0:00:12]} 58. Kc1 {[%clk 0:00:11]}  Kf8 {[%clk 0:00:12]} 59. Kb2 {[%clk 0:00:12]}  Nd6 {[%clk 0:00:13]} 60. Bd3 {[%clk 0:00:11]}  Nb7 {[%clk 0:00:12]} 61. Bc2 {[%clk 0:00:06]}  Nc5 {[%clk 0:00:12]} 62. Ng3 {[%clk 0:00:06]}  Ke7 {[%clk 0:00:11]} 63. Ne2 {[%clk 0:00:06]}  Kd6 {[%clk 0:00:10]} 64. Ng3 {[%clk 0:00:07]}  Ke7 {[%clk 0:00:10]} 65. Ne2 {[%clk 0:00:07]}  Nb7 {[%clk 0:00:09]} 66. Ng3 {[%clk 0:00:07]}  Nd6 {[%clk 0:00:10]} 67. Bd3 {[%clk 0:00:06]}  Nb7 {[%clk 0:00:09]} 68. Bc2 {[%clk 0:00:05]}  Nc5 {[%clk 0:00:09]} 1/2-1/2


[Site "https://www.chess.com"]

[Event "Titled Tuesday Blitz August 1 Late 2023"]
[White "Estrada Nieto, Julian"]
[Black "2good4u734"]
[WhiteFideId "5101018"]
[WhiteElo "2519"]
[BlackElo "2337"]
[Result "1/2-1/2"]
[Round "2"]
[TimeControl "180+1"]
[Date "2023.08.01"]
[WhiteClock "0:00:09"]
[BlackClock "0:00:06"]
[Board "98"]

1. e4 {[%clk 0:03:00]}  c6 {[%clk 0:02:46]} 2. d4 {[%clk 0:03:00]}  d5 {[%clk 0:02:46]} 3. exd5 {[%clk 0:02:59]}  cxd5 {[%clk 0:02:46]} 4. c3 {[%clk 0:02:59]}  Bf5 {[%clk 0:02:45]} 5. Bf4 {[%clk 0:03:00]}  Nc6 {[%clk 0:02:44]} 6. Nf3 {[%clk 0:03:00]}  e6 {[%clk 0:02:43]} 7. Qb3 {[%clk 0:02:45]}  Qd7 {[%clk 0:02:29]} 8. Bb5 {[%clk 0:02:44]}  Bd6 {[%clk 0:02:26]} 9. Ne5 {[%clk 0:02:40]}  Bxe5 {[%clk 0:02:25]} 10. Bxe5 {[%clk 0:02:40]}  Nf6 {[%clk 0:02:23]} 11. Bxf6 {[%clk 0:02:36]}  gxf6 {[%clk 0:02:23]} 12. O-O {[%clk 0:02:36]}  a6 {[%clk 0:02:17]} 13. Bxc6 {[%clk 0:02:24]}  Qxc6 {[%clk 0:02:16]} 14. Nd2 {[%clk 0:02:25]}  O-O {[%clk 0:02:05]} 15. Rfe1 {[%clk 0:02:23]}  Kh8 {[%clk 0:02:04]} 16. Qb4 {[%clk 0:02:18]}  Qc7 {[%clk 0:02:01]} 17. Re3 {[%clk 0:02:15]}  Rg8 {[%clk 0:01:59]} 18. Rg3 {[%clk 0:02:12]}  Rg6 {[%clk 0:01:52]} 19. Nf3 {[%clk 0:02:06]}  Be4 {[%clk 0:01:49]} 20. Nd2 {[%clk 0:02:01]}  Bf5 {[%clk 0:01:49]} 21. Re1 {[%clk 0:01:57]}  Rxg3 {[%clk 0:01:17]} 22. hxg3 {[%clk 0:01:56]}  Rg8 {[%clk 0:01:16]} 23. Qb3 {[%clk 0:01:32]}  Bd3 {[%clk 0:00:58]} 24. Qd1 {[%clk 0:01:30]}  Qb6 {[%clk 0:00:54]} 25. Qf3 {[%clk 0:01:27]}  Bf5 {[%clk 0:00:50]} 26. b3 {[%clk 0:01:16]}  Qa5 {[%clk 0:00:48]} 27. a4 {[%clk 0:01:09]}  Qb6 {[%clk 0:00:39]} 28. b4 {[%clk 0:01:06]}  Qc6 {[%clk 0:00:37]} 29. a5 {[%clk 0:01:04]}  Kg7 {[%clk 0:00:26]} 30. Re3 {[%clk 0:00:51]}  Rc8 {[%clk 0:00:23]} 31. g4 {[%clk 0:00:51]}  Bg6 {[%clk 0:00:23]} 32. Qf4 {[%clk 0:00:51]}  Qa4 {[%clk 0:00:20]} 33. Nf3 {[%clk 0:00:48]}  Qa1+ {[%clk 0:00:17]} 34. Kh2 {[%clk 0:00:46]}  Rxc3 {[%clk 0:00:18]} 35. g5 {[%clk 0:00:46]}  fxg5 {[%clk 0:00:16]} 36. Nxg5 {[%clk 0:00:41]}  Rxe3 {[%clk 0:00:16]} 37. Qxe3 {[%clk 0:00:40]}  Qb1 {[%clk 0:00:16]} 38. Qe5+ {[%clk 0:00:39]}  Kh6 {[%clk 0:00:13]} 39. Qf4 {[%clk 0:00:20]}  Qf5 {[%clk 0:00:10]} 40. Nxf7+ {[%clk 0:00:20]}  Kg7 {[%clk 0:00:08]} 41. Qxf5 {[%clk 0:00:19]}  Bxf5 {[%clk 0:00:09]} 42. Nd6 {[%clk 0:00:20]}  Kf6 {[%clk 0:00:08]} 43. Nxb7 {[%clk 0:00:20]}  e5 {[%clk 0:00:07]} 44. Nc5 {[%clk 0:00:21]}  exd4 {[%clk 0:00:07]} 45. Kg1 {[%clk 0:00:18]}  d3 {[%clk 0:00:07]} 46. Kf1 {[%clk 0:00:18]}  Ke5 {[%clk 0:00:06]} 47. Ke1 {[%clk 0:00:18]}  Kd4 {[%clk 0:00:07]} 48. Kd2 {[%clk 0:00:17]}  Kc4 {[%clk 0:00:07]} 49. Nxa6 {[%clk 0:00:17]}  Kb5 {[%clk 0:00:07]} 50. Nc7+ {[%clk 0:00:17]}  Kxb4 {[%clk 0:00:07]} 51. Nxd5+ {[%clk 0:00:16]}  Kxa5 {[%clk 0:00:08]} 52. Nf4 {[%clk 0:00:17]}  Kb5 {[%clk 0:00:09]} 53. Nxd3 {[%clk 0:00:18]}  Kc6 {[%clk 0:00:09]} 54. Nf4 {[%clk 0:00:17]}  Kd6 {[%clk 0:00:09]} 55. f3 {[%clk 0:00:17]}  Ke5 {[%clk 0:00:10]} 56. Ke3 {[%clk 0:00:17]}  Bd7 {[%clk 0:00:10]} 57. g4 {[%clk 0:00:17]}  Bc6 {[%clk 0:00:10]} 58. Nd3+ {[%clk 0:00:18]}  Kf6 {[%clk 0:00:11]} 59. f4 {[%clk 0:00:18]}  Bd7 {[%clk 0:00:11]} 60. Ne5 {[%clk 0:00:17]}  Be6 {[%clk 0:00:11]} 61. Ke4 {[%clk 0:00:16]}  Bc8 {[%clk 0:00:10]} 62. g5+ {[%clk 0:00:17]}  Ke7 {[%clk 0:00:10]} 63. f5 {[%clk 0:00:17]}  Bb7+ {[%clk 0:00:10]} 64. Kf4 {[%clk 0:00:17]}  Bd5 {[%clk 0:00:10]} 65. Ng4 {[%clk 0:00:17]}  Kf7 {[%clk 0:00:09]} 66. Ke5 {[%clk 0:00:16]}  Ba2 {[%clk 0:00:09]} 67. Kf4 {[%clk 0:00:14]}  Kg7 {[%clk 0:00:08]} 68. Ne5 {[%clk 0:00:15]}  Bb1 {[%clk 0:00:08]} 69. f6+ {[%clk 0:00:15]}  Kf8 {[%clk 0:00:07]} 70. Ke3 {[%clk 0:00:14]}  Ba2 {[%clk 0:00:06]} 71. Kf4 {[%clk 0:00:14]}  Bb1 {[%clk 0:00:06]} 72. Ng4 {[%clk 0:00:14]}  Kf7 {[%clk 0:00:06]} 73. Nh6+ {[%clk 0:00:14]}  Kg6 {[%clk 0:00:06]} 74. Ng8 {[%clk 0:00:14]}  Ba2 {[%clk 0:00:06]} 75. Ne7+ {[%clk 0:00:14]}  Kf7 {[%clk 0:00:06]} 76. Nf5 {[%clk 0:00:13]}  Bb1 {[%clk 0:00:06]} 77. Nd6+ {[%clk 0:00:13]}  Kg6 {[%clk 0:00:06]} 78. Ne4 {[%clk 0:00:12]}  h6 {[%clk 0:00:07]} 79. gxh6 {[%clk 0:00:10]}  Kxh6 {[%clk 0:00:07]} 80. Ng5 {[%clk 0:00:08]}  Kg6 {[%clk 0:00:07]} 81. Ke5 {[%clk 0:00:06]}  Ba2 {[%clk 0:00:06]} 82. Ne6 {[%clk 0:00:05]}  Kf7 {[%clk 0:00:06]} 83. Ng5+ {[%clk 0:00:03]}  Kf8 {[%clk 0:00:06]} 84. Ne4 {[%clk 0:00:04]}  Kf7 {[%clk 0:00:06]} 85. Nd6+ {[%clk 0:00:04]}  Kf8 {[%clk 0:00:06]} 86. Kf5 {[%clk 0:00:04]}  Bb1+ {[%clk 0:00:07]} 87. Kg5 {[%clk 0:00:05]}  Bc2 {[%clk 0:00:06]} 88. Nc8 {[%clk 0:00:05]}  Bb3 {[%clk 0:00:06]} 89. Ne7 {[%clk 0:00:05]}  Kf7 {[%clk 0:00:06]} 90. Ng6 {[%clk 0:00:06]}  Ba2 {[%clk 0:00:06]} 91. Ne5+ {[%clk 0:00:06]}  Kf8 {[%clk 0:00:07]} 92. Nf3 {[%clk 0:00:06]}  Bb1 {[%clk 0:00:07]} 93. Nd4 {[%clk 0:00:07]}  Bd3 {[%clk 0:00:07]} 94. Kf4 {[%clk 0:00:06]}  Bc4 {[%clk 0:00:07]} 95. Ke5 {[%clk 0:00:07]}  Ba2 {[%clk 0:00:07]} 96. Nf5 {[%clk 0:00:06]}  Kf7 {[%clk 0:00:07]} 97. Nd6+ {[%clk 0:00:06]}  Kf8 {[%clk 0:00:07]} 98. Nb5 {[%clk 0:00:07]}  Bb3 {[%clk 0:00:06]} 99. Nc3 {[%clk 0:00:07]}  Bc4 {[%clk 0:00:06]} 100. Ne4 {[%clk 0:00:08]}  Bb3 {[%clk 0:00:06]} 101. Nd6 {[%clk 0:00:09]}  Ba2 {[%clk 0:00:06]} 1/2-1/2


[Site "https://www.chess.com"]

[Event "Titled Tuesday Blitz August 1 Late 2023"]
[White "Kula, Robert"]
[Black "Gasparyan, David"]
[WhiteFideId "1101218"]
[BlackFideId "13311980"]
[WhiteElo "2234"]
[BlackElo "2514"]
[Result "1-0"]
[Round "2"]
[TimeControl "180+1"]
[Date "2023.08.01"]
[WhiteClock "0:00:14"]
[BlackClock "0:00:17"]
[Board "99"]

1. e4 {[%clk 0:03:00]}  c5 {[%clk 0:02:56]} 2. c4 {[%clk 0:03:00]}  Nc6 {[%clk 0:02:55]} 3. Nc3 {[%clk 0:03:00]}  e6 {[%clk 0:02:55]} 4. d3 {[%clk 0:03:00]}  Nf6 {[%clk 0:02:51]} 5. Bg5 {[%clk 0:02:59]}  h6 {[%clk 0:02:50]} 6. Bh4 {[%clk 0:02:59]}  Bd6 {[%clk 0:02:49]} 7. Be2 {[%clk 0:02:50]}  a6 {[%clk 0:02:48]} 8. a3 {[%clk 0:02:49]}  Nd4 {[%clk 0:02:46]} 9. Nf3 {[%clk 0:02:47]}  Nxf3+ {[%clk 0:02:46]} 10. Bxf3 {[%clk 0:02:45]}  Qc7 {[%clk 0:02:44]} 11. Bg3 {[%clk 0:02:44]}  Be5 {[%clk 0:02:41]} 12. Qe2 {[%clk 0:02:42]}  g5 {[%clk 0:02:37]} 13. O-O-O {[%clk 0:02:12]}  Rg8 {[%clk 0:02:30]} 14. Qc2 {[%clk 0:02:09]}  g4 {[%clk 0:02:28]} 15. Be2 {[%clk 0:02:08]}  d6 {[%clk 0:02:24]} 16. Bxe5 {[%clk 0:02:06]}  dxe5 {[%clk 0:02:25]} 17. Qd2 {[%clk 0:02:05]}  Rg6 {[%clk 0:02:23]} 18. h3 {[%clk 0:02:04]}  gxh3 {[%clk 0:02:14]} 19. Rxh3 {[%clk 0:02:03]}  Bd7 {[%clk 0:02:14]} 20. Rxh6 {[%clk 0:02:02]}  Rxh6 {[%clk 0:02:06]} 21. Qxh6 {[%clk 0:02:01]}  Ng8 {[%clk 0:02:07]} 22. Qg7 {[%clk 0:01:59]}  O-O-O {[%clk 0:01:54]} 23. Qxf7 {[%clk 0:01:59]}  Qd6 {[%clk 0:01:45]} 24. Qf3 {[%clk 0:01:19]}  Ne7 {[%clk 0:01:43]} 25. Rh1 {[%clk 0:01:18]}  Nc6 {[%clk 0:01:43]} 26. Rh7 {[%clk 0:01:12]}  Nd4 {[%clk 0:01:43]} 27. Qh5 {[%clk 0:01:08]}  Bc6 {[%clk 0:01:34]} 28. Bd1 {[%clk 0:01:07]}  Rf8 {[%clk 0:01:28]} 29. Rh8 {[%clk 0:01:06]}  Rxh8 {[%clk 0:01:25]} 30. Qxh8+ {[%clk 0:01:06]}  Kc7 {[%clk 0:01:26]} 31. Qf6 {[%clk 0:01:04]}  b5 {[%clk 0:01:22]} 32. cxb5 {[%clk 0:01:03]}  axb5 {[%clk 0:01:23]} 33. g3 {[%clk 0:01:01]}  b4 {[%clk 0:01:22]} 34. axb4 {[%clk 0:01:00]}  cxb4 {[%clk 0:01:23]} 35. Ne2 {[%clk 0:00:52]}  Qc5+ {[%clk 0:01:13]} 36. Kd2 {[%clk 0:00:51]}  b3 {[%clk 0:00:56]} 37. Nxd4 {[%clk 0:00:51]}  Qb4+ {[%clk 0:00:54]} 38. Ke2 {[%clk 0:00:48]}  Qxd4 {[%clk 0:00:52]} 39. Qe7+ {[%clk 0:00:39]}  Kb6 {[%clk 0:00:46]} 40. Qa3 {[%clk 0:00:38]}  Bb5 {[%clk 0:00:46]} 41. Qxb3 {[%clk 0:00:37]}  Qxe4+ {[%clk 0:00:47]} 42. Kd2 {[%clk 0:00:37]}  Qf5 {[%clk 0:00:45]} 43. f3 {[%clk 0:00:36]}  Qg5+ {[%clk 0:00:45]} 44. Kc2 {[%clk 0:00:35]}  Qxg3 {[%clk 0:00:43]} 45. Qxe6+ {[%clk 0:00:35]}  Kc7 {[%clk 0:00:38]} 46. Qe7+ {[%clk 0:00:35]}  Kc6 {[%clk 0:00:37]} 47. Qe6+ {[%clk 0:00:19]}  Kc7 {[%clk 0:00:36]} 48. Qe7+ {[%clk 0:00:19]}  Kc6 {[%clk 0:00:37]} 49. Qe8+ {[%clk 0:00:18]}  Kb6 {[%clk 0:00:36]} 50. Qb8+ {[%clk 0:00:17]}  Kc6 {[%clk 0:00:35]} 51. Qc8+ {[%clk 0:00:16]}  Kd6 {[%clk 0:00:32]} 52. Qb8+ {[%clk 0:00:16]}  Kc6 {[%clk 0:00:32]} 53. Qc8+ {[%clk 0:00:16]}  Kb6 {[%clk 0:00:32]} 54. Qb8+ {[%clk 0:00:16]}  Kc5 {[%clk 0:00:30]} 55. d4+ {[%clk 0:00:16]}  Kb4 {[%clk 0:00:16]} 56. Qd6+ {[%clk 0:00:14]}  Ka5 {[%clk 0:00:17]} 57. b4+ {[%clk 0:00:14]}  Ka4 {[%clk 0:00:17]} 58. Kb2# {[%clk 0:00:14]} 1-0


[Site "https://www.chess.com"]

[Event "Titled Tuesday Blitz August 1 Late 2023"]
[White "Penagalapati, Abhinav"]
[Black "Haszon, David"]
[WhiteFideId "30938210"]
[BlackFideId "733610"]
[WhiteElo "2071"]
[BlackElo "2500"]
[Result "0-1"]
[Round "2"]
[TimeControl "180+1"]
[Date "2023.08.01"]
[WhiteClock "0:01:06"]
[BlackClock "0:01:46"]
[Board "100"]

1. Nf3 {[%clk 0:03:00]}  Nf6 {[%clk 0:02:56]} 2. g3 {[%clk 0:03:01]}  g6 {[%clk 0:02:56]} 3. Bg2 {[%clk 0:03:01]}  Bg7 {[%clk 0:02:57]} 4. O-O {[%clk 0:03:02]}  O-O {[%clk 0:02:58]} 5. d4 {[%clk 0:03:03]}  d5 {[%clk 0:02:59]} 6. c4 {[%clk 0:03:03]}  c6 {[%clk 0:02:59]} 7. Nc3 {[%clk 0:03:03]}  Ne4 {[%clk 0:03:00]} 8. cxd5 {[%clk 0:03:02]}  cxd5 {[%clk 0:02:59]} 9. Ne5 {[%clk 0:02:58]}  Nxc3 {[%clk 0:02:54]} 10. bxc3 {[%clk 0:02:59]}  Nc6 {[%clk 0:02:54]} 11. Nxc6 {[%clk 0:02:59]}  bxc6 {[%clk 0:02:55]} 12. Ba3 {[%clk 0:02:59]}  Re8 {[%clk 0:02:52]} 13. e4 {[%clk 0:02:56]}  Ba6 {[%clk 0:02:48]} 14. Re1 {[%clk 0:02:56]}  Bc4 {[%clk 0:02:48]} 15. Qa4 {[%clk 0:02:55]}  Bb5 {[%clk 0:02:45]} 16. Qc2 {[%clk 0:02:53]}  e6 {[%clk 0:02:45]} 17. Rab1 {[%clk 0:02:52]}  Rb8 {[%clk 0:02:37]} 18. Bc5 {[%clk 0:02:51]}  Qa5 {[%clk 0:02:34]} 19. Bd6 {[%clk 0:02:44]}  Rbd8 {[%clk 0:02:20]} 20. Bb4 {[%clk 0:02:41]}  Qa6 {[%clk 0:02:20]} 21. Qb2 {[%clk 0:02:26]}  Bc4 {[%clk 0:02:16]} 22. a3 {[%clk 0:02:24]}  Rb8 {[%clk 0:02:15]} 23. Qd2 {[%clk 0:02:22]}  Bd3 {[%clk 0:02:14]} 24. Rbd1 {[%clk 0:02:19]}  Bc4 {[%clk 0:02:13]} 25. Rb1 {[%clk 0:02:18]}  Qa4 {[%clk 0:02:11]} 26. Bf3 {[%clk 0:02:13]}  a5 {[%clk 0:02:07]} 27. Bd1 {[%clk 0:02:11]}  Qb5 {[%clk 0:02:00]} 28. Bd6 {[%clk 0:01:56]}  Qxb1 {[%clk 0:01:59]} 29. Ba4 {[%clk 0:01:52]}  Qb7 {[%clk 0:01:55]} 30. exd5 {[%clk 0:01:37]}  exd5 {[%clk 0:01:50]} 31. Bxb8 {[%clk 0:01:37]}  Qxb8 {[%clk 0:01:47]} 32. Bxc6 {[%clk 0:01:35]}  Rxe1+ {[%clk 0:01:47]} 33. Qxe1 {[%clk 0:01:36]}  Bf8 {[%clk 0:01:46]} 34. a4 {[%clk 0:01:35]}  Qd6 {[%clk 0:01:46]} 35. Qe8 {[%clk 0:01:06]}  Qe7 {[%clk 0:01:46]} 0-1


[Site "https://www.chess.com"]

[Event "Titled Tuesday Blitz August 1 Late 2023"]
[White "De Souza, Cristiano Gomes"]
[Black "Pranav, V"]
[WhiteFideId "2151758"]
[BlackFideId "25060783"]
[WhiteElo "2218"]
[BlackElo "3010"]
[Result "0-1"]
[Round "2"]
[TimeControl "180+1"]
[Date "2023.08.01"]
[WhiteClock "0:00:14"]
[BlackClock "0:01:21"]
[Board "101"]

1. d4 {[%clk 0:03:00]}  Nf6 {[%clk 0:03:00]} 2. c4 {[%clk 0:03:00]}  e6 {[%clk 0:03:00]} 3. Nf3 {[%clk 0:03:01]}  b6 {[%clk 0:03:00]} 4. g3 {[%clk 0:02:59]}  Bb7 {[%clk 0:03:00]} 5. Bg2 {[%clk 0:02:58]}  Be7 {[%clk 0:03:01]} 6. O-O {[%clk 0:02:58]}  O-O {[%clk 0:03:02]} 7. Nc3 {[%clk 0:02:58]}  d5 {[%clk 0:03:02]} 8. b3 {[%clk 0:02:57]}  Nbd7 {[%clk 0:03:02]} 9. Bb2 {[%clk 0:02:56]}  Re8 {[%clk 0:03:03]} 10. Rc1 {[%clk 0:02:54]}  a6 {[%clk 0:03:03]} 11. Re1 {[%clk 0:02:52]}  Rc8 {[%clk 0:03:02]} 12. Nd2 {[%clk 0:02:52]}  c5 {[%clk 0:03:02]} 13. dxc5 {[%clk 0:02:47]}  bxc5 {[%clk 0:03:02]} 14. cxd5 {[%clk 0:02:46]}  exd5 {[%clk 0:03:03]} 15. e4 {[%clk 0:02:36]}  d4 {[%clk 0:02:41]} 16. Na4 {[%clk 0:02:34]}  Bf8 {[%clk 0:02:26]} 17. f4 {[%clk 0:02:06]}  Bc6 {[%clk 0:02:18]} 18. e5 {[%clk 0:02:00]}  Nd5 {[%clk 0:02:16]} 19. Ne4 {[%clk 0:01:53]}  Ne3 {[%clk 0:02:14]} 20. Rxe3 {[%clk 0:01:45]}  dxe3 {[%clk 0:02:15]} 21. Qe2 {[%clk 0:01:31]}  c4 {[%clk 0:02:09]} 22. Qxe3 {[%clk 0:01:27]}  cxb3 {[%clk 0:02:07]} 23. axb3 {[%clk 0:01:26]}  Bxa4 {[%clk 0:02:04]} 24. bxa4 {[%clk 0:01:24]}  Rxc1+ {[%clk 0:01:58]} 25. Qxc1 {[%clk 0:01:21]}  Qb6+ {[%clk 0:01:57]} 26. Kh1 {[%clk 0:01:19]}  Rb8 {[%clk 0:01:55]} 27. Bc3 {[%clk 0:00:49]}  Qb1 {[%clk 0:01:53]} 28. Qg1 {[%clk 0:00:42]}  Qc2 {[%clk 0:01:52]} 29. Be1 {[%clk 0:00:33]}  Rb1 {[%clk 0:01:49]} 30. h3 {[%clk 0:00:24]}  Bb4 {[%clk 0:01:41]} 31. Qd4 {[%clk 0:00:19]}  Rxe1+ {[%clk 0:01:38]} 32. Kh2 {[%clk 0:00:20]}  Bc5 {[%clk 0:01:24]} 33. Qxd7 {[%clk 0:00:16]}  Bg1+ {[%clk 0:01:23]} 34. Kh1 {[%clk 0:00:16]}  Bd4+ {[%clk 0:01:23]} 35. Kh2 {[%clk 0:00:16]}  Rh1+ {[%clk 0:01:21]} 36. Kxh1 {[%clk 0:00:14]}  Qd1+ {[%clk 0:01:21]} 37. Kh2 {[%clk 0:00:14]}  Qg1# {[%clk 0:01:21]} 0-1


[Site "https://www.chess.com"]

[Event "Titled Tuesday Blitz August 1 Late 2023"]
[White "KrokerGuy"]
[Black "Ibarra Jerez, Jose Carlos"]
[BlackFideId "2226332"]
[WhiteElo "2406"]
[BlackElo "2886"]
[Result "1/2-1/2"]
[Round "2"]
[TimeControl "180+1"]
[Date "2023.08.01"]
[WhiteClock "0:00:03"]
[BlackClock "0:00:02"]
[Board "102"]

1. e4 {[%clk 0:02:52]}  c5 {[%clk 0:02:59]} 2. Nf3 {[%clk 0:02:52]}  e6 {[%clk 0:03:00]} 3. d4 {[%clk 0:02:53]}  cxd4 {[%clk 0:03:00]} 4. Nxd4 {[%clk 0:02:54]}  Bc5 {[%clk 0:03:01]} 5. Nc3 {[%clk 0:02:54]}  Qb6 {[%clk 0:03:00]} 6. Be3 {[%clk 0:02:38]}  Nc6 {[%clk 0:03:00]} 7. Na4 {[%clk 0:02:08]}  Qa5+ {[%clk 0:03:00]} 8. c3 {[%clk 0:02:08]}  Bxd4 {[%clk 0:03:01]} 9. Bxd4 {[%clk 0:02:09]}  Nxd4 {[%clk 0:03:01]} 10. Qxd4 {[%clk 0:02:09]}  e5 {[%clk 0:03:02]} 11. Qb4 {[%clk 0:02:02]}  Qxb4 {[%clk 0:03:02]} 12. cxb4 {[%clk 0:02:03]}  Nf6 {[%clk 0:03:02]} 13. Bd3 {[%clk 0:02:03]}  d5 {[%clk 0:03:01]} 14. exd5 {[%clk 0:01:59]}  Nxd5 {[%clk 0:03:02]} 15. a3 {[%clk 0:01:58]}  O-O {[%clk 0:02:59]} 16. O-O {[%clk 0:01:57]}  Nf4 {[%clk 0:02:52]} 17. Bc4 {[%clk 0:01:42]}  b6 {[%clk 0:02:45]} 18. g3 {[%clk 0:01:35]}  Nh3+ {[%clk 0:02:43]} 19. Kg2 {[%clk 0:01:35]}  Ng5 {[%clk 0:02:43]} 20. Bd5 {[%clk 0:01:32]}  Bh3+ {[%clk 0:02:42]} 21. Kg1 {[%clk 0:01:31]}  Rad8 {[%clk 0:02:08]} 22. Rfd1 {[%clk 0:01:30]}  Bg4 {[%clk 0:02:05]} 23. Nc3 {[%clk 0:01:02]}  Bxd1 {[%clk 0:02:04]} 24. Rxd1 {[%clk 0:01:03]}  Rd7 {[%clk 0:02:00]} 25. h4 {[%clk 0:01:01]}  Ne6 {[%clk 0:01:53]} 26. Bxe6 {[%clk 0:01:02]}  Rxd1+ {[%clk 0:01:53]} 27. Nxd1 {[%clk 0:01:03]}  fxe6 {[%clk 0:01:53]} 28. Kf1 {[%clk 0:01:02]}  Rc8 {[%clk 0:01:50]} 29. Nc3 {[%clk 0:01:01]}  Kf7 {[%clk 0:01:48]} 30. Ke2 {[%clk 0:01:00]}  Ke7 {[%clk 0:01:45]} 31. Kd3 {[%clk 0:01:00]}  Rd8+ {[%clk 0:01:45]} 32. Ke3 {[%clk 0:01:00]}  Kf6 {[%clk 0:01:38]} 33. f3 {[%clk 0:00:57]}  h5 {[%clk 0:01:34]} 34. Ne4+ {[%clk 0:00:55]}  Kf5 {[%clk 0:01:34]} 35. Nf2 {[%clk 0:00:49]}  g5 {[%clk 0:01:28]} 36. hxg5 {[%clk 0:00:46]}  Kxg5 {[%clk 0:01:29]} 37. Nd3 {[%clk 0:00:35]}  Kf5 {[%clk 0:01:26]} 38. b5 {[%clk 0:00:22]}  Rxd3+ {[%clk 0:00:45]} 39. Kxd3 {[%clk 0:00:22]}  e4+ {[%clk 0:00:46]} 40. fxe4+ {[%clk 0:00:04]}  Kg4 {[%clk 0:00:46]} 41. Kd4 {[%clk 0:00:04]}  Kxg3 {[%clk 0:00:46]} 42. Ke5 {[%clk 0:00:05]}  h4 {[%clk 0:00:47]} 43. Kxe6 {[%clk 0:00:06]}  h3 {[%clk 0:00:47]} 44. e5 {[%clk 0:00:07]}  h2 {[%clk 0:00:48]} 45. Kd6 {[%clk 0:00:06]}  h1=Q {[%clk 0:00:49]} 46. e6 {[%clk 0:00:07]}  Qd1+ {[%clk 0:00:48]} 47. Kc6 {[%clk 0:00:06]}  Qc2+ {[%clk 0:00:47]} 48. Kb7 {[%clk 0:00:06]}  Qe4+ {[%clk 0:00:44]} 49. Kxa7 {[%clk 0:00:06]}  Qxe6 {[%clk 0:00:44]} 50. b4 {[%clk 0:00:05]}  Kf4 {[%clk 0:00:43]} 51. a4 {[%clk 0:00:06]}  Ke5 {[%clk 0:00:42]} 52. a5 {[%clk 0:00:07]}  bxa5 {[%clk 0:00:40]} 53. bxa5 {[%clk 0:00:08]}  Kd6 {[%clk 0:00:40]} 54. b6 {[%clk 0:00:08]}  Kc6 {[%clk 0:00:40]} 55. b7 {[%clk 0:00:08]}  Qe3+ {[%clk 0:00:28]} 56. Ka8 {[%clk 0:00:01]}  Qc5 {[%clk 0:00:09]} 57. b8=Q {[%clk 0:00:02]}  Qxa5+ {[%clk 0:00:10]} 58. Qa7 {[%clk 0:00:03]}  Qd8+ {[%clk 0:00:10]} 59. Qb8 {[%clk 0:00:04]}  Qd7 {[%clk 0:00:09]} 60. Qa7 {[%clk 0:00:02]}  Qc8+ {[%clk 0:00:06]} 61. Qb8 {[%clk 0:00:03]}  Qd7 {[%clk 0:00:07]} 62. Qa7 {[%clk 0:00:03]}  Qe8+ {[%clk 0:00:06]} 63. Qb8 {[%clk 0:00:03]}  Qe7 {[%clk 0:00:07]} 64. Qc8+ {[%clk 0:00:03]}  Kb6 {[%clk 0:00:06]} 65. Qb8+ {[%clk 0:00:03]}  Ka6 {[%clk 0:00:05]} 66. Qc8+ {[%clk 0:00:03]}  Kb6 {[%clk 0:00:06]} 67. Qb8+ {[%clk 0:00:03]}  Kc6 {[%clk 0:00:06]} 68. Qc8+ {[%clk 0:00:03]}  Kd6 {[%clk 0:00:05]} 69. Qb8+ {[%clk 0:00:02]}  Kc5 {[%clk 0:00:03]} 70. Qc8+ {[%clk 0:00:02]}  Kb5 {[%clk 0:00:03]} 71. Qb7+ {[%clk 0:00:02]}  Qxb7+ {[%clk 0:00:02]} 72. Kxb7 {[%clk 0:00:03]} 1/2-1/2


[Site "https://www.chess.com"]